Cogmind - Beta 16 @@@ ROGUE MODE // 2025.11.18 @ 19:56:39 Player: Decree0327 Result: Destroyed by QE-H54(R) with Subdweller Machine Gun Performance ------------- Evolutions (0) 0 Regions Visited (2) 400 Robots Destroyed (3) 15 Value Destroyed (20) 20 Prototype IDs (0) 0 Alien Tech Used (0) 0 Bonus (0) 0 TOTAL SCORE: 435 Bonus ------- None Cogmind --------- Core Integrity 0/250 Matter 300/300 Energy 170/170 System Corruption 0% Temperature Cool (0) Movement Core (200) Ox3 Location -10/Subcaves Parts ------- > --- POWER (1) -------- Makeshift Power Source > --- PROPULSION (2) --- (None) > --- UTILITY (2) ------ Improved Heat Sink Small Storage Unit > --- WEAPON (2) ------- (None) > --- INVENTORY (8) ---- Subdweller Power Source Light Treads Light Treads Large Storage Unit Visual Processing Unit Terrain Scan Processor Propulsion Shielding Light Cannon Peak State ------------ > --- POWER ------------ Makeshift Power Source > --- PROPULSION ------- Aluminum Leg Aluminum Leg > --- UTILITY ---------- Improved Heat Sink Small Storage Unit > --- WEAPON ----------- Medium Laser Light Assault Rifle > --- INVENTORY -------- Ion Engine Light Treads Light Treads Large Storage Unit Visual Processing Unit Terrain Scan Processor Propulsion Shielding Light Cannon [Rating: 13] Favorites ----------- Power Ion Engine Engine Ion Engine Propulsion Aluminum Leg Leg Aluminum Leg Utility Small Storage Unit Device Seismic Detector Storage Small Storage Unit Weapon Light Assault Rifle Energy Gun Medium Laser Ballistic Gun Light Assault Rifle Build | -11 -10 -10 ------- Run | Yrd Mat Sub Slots Evolved . | . . . Power . | . . . Propulsion . | . . . Utility . | . . . Weapon . | . . . Parts Attached 9 | 7 . 2 Power 2 | 1 . 1 Engine 2 | 1 . 1 Core . | . . . Reactor . | . . . Propulsion 2 | 2 . . Treads . | . . . Leg 2 | 2 . . Wheel . | . . . Hover . | . . . Flight . | . . . Utility 3 | 2 . 1 Device 2 | 1 . 1 Storage 1 | 1 . . Processor . | . . . Hackware . | . . . Protection . | . . . Artifact . | . . . Weapon 2 | 2 . . Energy Gun 1 | 1 . . Energy Cannon . | . . . Ballistic Gun 1 | 1 . . Ballistic Cannon . | . . . Launcher . | . . . Special Weapon . | . . . Impact Weapon . | . . . Slashing Weapon . | . . . Piercing Weapon . | . . . Special Melee Weapon . | . . . Unidentified Prototypes . | . . . Parts Lost 5 | . . 5 Power . | . . . Propulsion 2 | . . 2 Utility 1 | . . 1 Weapon 2 | . . 2 Highest Loss Streak 4 | . . 4 To Critical Strikes . | . . . Average Backups 6 | 3 7 8 Power . | . 1 1 Propulsion 2 | 2 3 2 Utility 1 | . 1 4 Weapon 1 | . 1 1 Tool/Special . | . . . Unused Backups 11 | . 3 8 Power 1 | . . 1 Propulsion 4 | . 2 2 Utility 4 | . . 4 Weapon 2 | . 1 1 Tool/Special . | . . . Average Slot Usage (%) 97 | . 100 94 Engine 14 | . 14 14 Leg 26 | . 28 24 Device 14 | . 14 14 Storage 14 | . 14 14 Energy Gun 13 | . 14 13 Ballistic Gun 13 | . 14 13 Peak Build Rating 13 | 7 8 13 Average Rating 7 | 5 7 10 On Entrance 5 | . 7 8 Avg Prop Armor Cover (%) . | . . . Naked Turns . | . . . Heaviest Build 14 | 14 14 14 Greatest Support 20 | 20 20 20 Greatest Overweight (x) 3 | 2 . 3 Average Overweight (x) . | . . . Largest Inventory Capacity 8 | 8 8 8 Average Capacity 7 | 7 8 8 Most Carried 8 | 6 8 8 Average Carried 6 | 3 7 7 Final Capacity 8 | 8 8 8 Final Carried 8 | 6 8 8 Class Distribution -------------------- 100% | Mutant Dominant Class ---------------- Mutant | -10/Materials Mutant | -10/Subcaves Resources | -11 -10 -10 ----------- Run | Yrd Mat Sub Matter Collected 286 | 275 . 11 Remotely . | . . . Salvage Created 133 | 133 . . Parts 7 | 7 . . Haulers Intercepted . | . . . Recyclers Shooed . | . . . Parts Field Recycled . | . . . Retrieved Matter . | . . . Parts Self-Destructed 1 | . . 1 Prevented . | . . . Parts Restored . | . . . Kills | -11 -10 -10 ------- Run | Yrd Mat Sub Combat Hostiles Destroyed . | . . . Classes Destroyed 2 | 2 . . Tunneler 2 | 2 . . Recycler 1 | 1 . . Best Kill Streak 3 | 3 . . Combat Bots Only . | . . . Max Kills in Single Turn 1 | 1 . . Gunslinging . | . . . Exploded . | . . . Melee . | . . . Uniques/NPCs Destroyed . | . . . Combat | -11 -10 -10 -------- Run | Yrd Mat Sub Hostile Shots Fired 59 | . . 59 Missed 23 | . . 23 Hits 36 | . . 36 Projectile 36 | . . 36 Damage Taken 740 | . . 740 Core 255 | . . 255 Absorbed by Shields . | . . . Core Remaining (%) 100 | 100 . . Volleys Fired 14 | 5 . 9 Largest 2 | 2 . 2 Hottest 70 | 70 . 70 Shots Fired 26 | 10 . 16 Gun 26 | 10 . 16 Cannon . | . . . Launcher . | . . . Special . | . . . Kinetic 14 | 5 . 9 Thermal 12 | 5 . 7 Explosive . | . . . Electromagnetic . | . . . Robot Hit Streak 10 | 4 . 10 Robot Miss Streak 4 | 4 . 1 Penetration Max . | . . . Secondary Targets . | . . . Shots Hit Robots 17 | 4 . 13 Core Hits 7 | 5 . 2 Critical Kills . | . . . Critical Parts Destroyed . | . . . Critical Strikes 2 | 1 . 1 Burn 2 | 1 . 1 Melee Attacks . | . . . Impact . | . . . Slashing . | . . . Piercing . | . . . Sneak Attacks . | . . . Combat Hostiles . | . . . Follow-up Attacks . | . . . Damage Inflicted 203 | 80 . 123 Guns 203 | 80 . 123 Cannons . | . . . Explosions . | . . . Melee . | . . . Ramming . | . . . Kinetic 65 | 16 . 49 Thermal 138 | 64 . 74 Explosive . | . . . Electromagnetic . | . . . Impact . | . . . Slashing . | . . . Piercing . | . . . Highest Corruption . | . . . Average Corruption . | . . . Corruption Purged . | . . . Corruption Blocked . | . . . Overload Shots . | . . . Overflow Damage . | . . . Projectiles . | . . . Explosions . | . . . Melee . | . . . Knockbacks . | . . . Impact . | . . . Kinetic . | . . . Secondary . | . . . Self-Inflicted Damage . | . . . Shots . | . . . Rammed . | . . . Targets Rammed . | . . . Kicked . | . . . Crushed . | . . . Highest Temperature 80 | 80 . . Average Temperature 36 | 36 . . Received Heat Transfer 96 | . . 96 Siege Activations . | . . . Martial Activations . | . . . Shielding Activations . | . . . Robots Disrupted . | . . . Combat Hostiles . | . . . Robots Corrupted . | . . . Combat Hostiles . | . . . Parts Fried . | . . . Impact Corruptions . | . . . Robots Melted . | . . . Combat Hostiles . | . . . Parts Melted . | . . . Heat Transferred 555 | 259 . 296 Parts Sabotaged . | . . . Parts Stolen . | . . . Parts Stripped . | . . . Power Chain Reactions . | . . . Alert | -11 -10 -10 ------- Run | Yrd Mat Sub Maximum Alert Level . | . . . Low Security (%) 100 | 100 100 . Level 1 . | . . . Level 2 . | . . . Level 3 . | . . . Level 4 . | . . . Level 5 . | . . . High Security . | . . . Max Security . | . . . Peak Influence 15 | 15 3 . Initial 3 | . 3 . Average 1 | 2 . . Influence Increases 15 | 15 . . Destroy 0b10 Robot/NC 15 | 15 . . Influence Decreases 15 | 10 5 . Entered New Map 2 | . 2 . Time Decay 13 | 10 3 . Squads Dispatched 1 | . 1 . Investigation . | . . . Extermination . | . . . Reinforcement 1 | . 1 . Assault . | . . . Garrison . | . . . Intercept . | . . . Searches Triggered . | . . . Construction Impeded . | . . . Haulers Reinforced . | . . . Active Scanning Responses . | . . . Cargo Convoy Interrupts . | . . . Stealth | -11 -10 -10 --------- Run | Yrd Mat Sub Distress Signals 3 | . 3 . Communications Jammed . | . . . Distress Signals . | . . . Times Spotted 4 | . . 4 Peak Tracking Total 4 | . . 4 Tactical Retreats . | . . . Traps | -11 -10 -10 ------- Run | Yrd Mat Sub Traps Triggered . | . . . Indirectly . | . . . Trap Hack Attempts . | . . . Triggered . | . . . Disarmed . | . . . Reprogrammed . | . . . Reused . | . . . Traps Extracted . | . . . Installed . | . . . Triggered . | . . . Machines | -11 -10 -10 ---------- Run | Yrd Mat Sub Machines Disabled . | . . . Max in Single Turn . | . . . Machines Repaired . | . . . Machines Dismantled . | . . . Machines Sabotaged . | . . . Overloaded Fab Kills . | . . . Hacking | -11 -10 -10 --------- Run | Yrd Mat Sub Machines Accessed . | . . . Terminals . | . . . Fabricators . | . . . Repair Stations . | . . . Recycling Units . | . . . Scanalyzers . | . . . Garrison Access . | . . . Total Hacks . | . . . Successful . | . . . Failed . | . . . Catastrophic . | . . . Database Lockouts . | . . . Manual . | . . . Terminals . | . . . Fabricators . | . . . Repair Stations . | . . . Recycling Units . | . . . Scanalyzers . | . . . Garrison Access . | . . . Terminal Hacks . | . . . Fabricator Hacks . | . . . Repair Station Hacks . | . . . Recycling Unit Hacks . | . . . Scanalyzer . | . . . Garrison Access Hacks . | . . . Unauthorized Hacks . | . . . Terminals . | . . . Fabricators . | . . . Repair Stations . | . . . Recycling Units . | . . . Scanalyzers . | . . . Garrison Access . | . . . Data Cores Recovered . | . . . Used . | . . . Hacking Detections . | . . . Full Trace Events . | . . . Feedback Events . | . . . Feedback Blocked . | . . . Robot Schematics Acquired . | . . . Robots Built . | . . . Authchips . | . . . Time . | . . . Total Robot Build Rating . | . . . Part Schematics Acquired . | . . . Parts Built . | . . . Authchips . | . . . Time . | . . . Total Part Build Rating . | . . . Part Studies Acquired . | . . . Parts Repaired . | . . . Time . | . . . Parts Recycled . | . . . Recycled Matter . | . . . Retrieved Matter . | . . . Retrieved Components . | . . . Parts Scanalyzed . | . . . Part Schematics Acquired . | . . . Parts Damaged . | . . . Bothacking | -11 -10 -10 ------------ Run | Yrd Mat Sub Used RIF Installer . | . . . Robots Hacked . | . . . Non-combat . | . . . Combat . | . . . Robot Hacks Applied . | . . . Relay Couplers Released . | . . . Fabnet Peak Effective % . | . . . Robots Rewired . | . . . Allies Hacked . | . . . Hacks Repelled . | . . . Allies | -11 -10 -10 -------- Run | Yrd Mat Sub Total Allies . | . . . Largest Group . | . . . Highest-Rated Group . | . . . Highest-Rated Ally . | . . . Total Orders . | . . . Ally Attacks . | . . . Total Damage . | . . . Kills . | . . . Allies Corrupted . | . . . Allies Melted . | . . . Intel | -11 -10 -10 ------- Run | Yrd Mat Sub Active Infowar (turns) 259 | 18 181 60 Seismic 259 | 18 181 60 Robot Analysis Total . | . . . Derelict Logs Recovered . | . . . Drone Launches . | . . . Drone Recoveries . | . . . Exploration | -11 -10 -10 ------------- Run | Yrd Mat Sub Turns Passed 417 | 95 181 141 Spaces Moved 287 | 55 146 86 Core 22 | 15 . 7 Treads . | . . . Legs 265 | 40 146 79 Wheels . | . . . Hover . | . . . Flight . | . . . Fastest Speed 50 | 50 120 120 Average Speed 121 | 118 120 126 Slowest Speed 200 | 150 120 200 Overloaded Moves . | . . . Propulsion Burnouts . | . . . Robots Hopped . | . . . Potential Cave-ins . | . . . Cave-ins Triggered . | . . . Exploration Rate (%) 18 | 5 40 9 Regions Visited 2 Branch Regions 1 Pre-discovered Areas . | . . . Known Exits Taken . | . . . Unknown Exits Taken 2 | 1 1 . Scrap Searched . | . . . Spaces Dug . | . . . Terrain Destroyed . | . . . Melee . | . . . Projectile . | . . . AOE . | . . . Terrain Rammed . | . . . Walls Destroyed . | . . . Machines Disabled . | . . . Actions | -11 -10 -10 --------- Run | Yrd Mat Sub Total 331 | 73 153 105 Wait 4 | . . 4 Move 285 | 54 145 86 Hop . | . . . Pick Up 14 | 7 5 2 Fast Attach 7 | 6 . 1 Attach 1 | 1 . . Detach . | . . . Swap 1 | . . 1 Drop 5 | . 3 2 Fire 14 | 5 . 9 Melee . | . . . Ram . | . . . Kick . | . . . Crush . | . . . Escape Stasis . | . . . Rewire . | . . . Trap . | . . . Miscellaneous . | . . . Route ------- -11/Scrapyard -10/Materials -10/Subcaves (discovered 1 exit: [*Mat]) History --------- Turn | Location | Event 27 | -11/Scrapyard | Discovered new exit (range 15) 96 | -11/Scrapyard | Entered Materials 97 | -10/Materials | Met a group of wandering Federalists 275 | -10/Materials | Discovered new exit (range 3) 277 | -10/Materials | Entered Subcaves 278 | -10/Subcaves | Continued accompanying wandering Federalists (2) 278 | -10/Subcaves | Approached by a straggling Scientist 299 | -10/Subcaves | Shifting Twisted Machinery released Mak. Power Source 306 | -10/Subcaves | Shifting Twisted Machinery released Barrage Gun 306 | -10/Subcaves | Build established: Mutant 328 | -10/Subcaves | Discovered new exit (range 12) 404 | -10/Subcaves | Core integrity fell below 50% 415 | -10/Subcaves | Core integrity fell below 20% 418 | -10/Subcaves | Destroyed by QE-H54(R) with Subdweller Machine Gun Last Messages --------------- 00373_ 8W-7IK(O) puts together Sub. Power Source. 00375_ 8W-7IK(O) collects matter. 00383_ Dropped Ion Engine. 00384_ Acquired Sub. Power Source. 00384_ 8W-7IK(O) collects matter. 00392_ 7Z-R07(R) suffers critical hit (Burn). 00393_ 8W-7IK(O) collects matter. 00394_ Aluminum Leg destroyed. 00397_ 8W-7IK(O) collects matter. 00401_ Med. Laser destroyed. 00401_ 8R-PHJ(R) destroyed. 00402_ 8W-7IK(O) collects matter. 00405_ Lgt. Assault Rifle destroyed. 00408_ WM-DVL(R) affixes Scrap Shield Fragment to Scrap Shield. 00411_ 8W-7IK(O) collects matter. 00413_ 8W-7IK(O) puts together Mak. System Restoration Module. 00415_ 8W-7IK(O) collects matter. Map ----- +----------------------------------------------------+ | ?????????????????????????????????????????????????? | | ?????????????????????????????????????????????????? | | ?????????????????????????????????????????????????? | | ?????????????????????????????????????????????????? | | ?????????????????????????????????????????????????? | | ?????????????????????????????????????????????????? | | ?????????????????????????????????????????????????? | | ?????????????????????????????????????????????????? | | ?????? ??????????????????? ?????????????????????? | | ?????? ???????????????? ?????????????????????? | | ?????? ??????????????## #????????????????????? | | ?????? ???????????????? ????????????????????? | | ?????# ??????????# ????# ????????????????????? | | ??### ???????# ? ???## ????????????????????? | | ?## ????????? ? ??? # ????????????????????? | | ?? ?????????# ? #### #???????????????????? | | ??# ?????????# ? ######??????????????? | | ?## ???????????# ?? % ####???????????? | | ## ???##???????# ??? ##??????????? | | # #?## #????????# ???# % ##?????????? | | ### #????####?# ???# #?????????? | | ## ##???# ##?# #### ""#???????????? | | % ##??# #??# R "#????????????? | | ##?# #??# R ##???????????? | | #### ### #?## R* ##??????????? | | ?????# % ### ### @ ## ###????????? | | ??????# = ####??# ## ### % "#????????? | | ??????#=%######?# ## ##?### ""#????????? | | ??????# [ #?# O ### #????## #????????? | | ??????# ### !## #????# #????????? | | ??????## " ## % ##* #????# ##???????? | | ???????##"#" * % % =% ###????# #???????? | | ????????##"#" = #?????## #???????? | | ?????????#""" # ####????# ##???????? | | ????????""""### ## # ###### #????????? | | ????????""""??## ##### ## #????????? | | ???????? ???## "#???## #????????? | | ????????#[""????#" "" ???### ## #???????? | | ???????? ?????? % ???## ##### #???????? | | ?????????????? % ????# #??# ??????? | | ?????????????? ##???# < ????? | | ????????????? % ###????# ## ??? | | ?????????????### ##??????## ### ## ##?? ?? | | ???????????????#######????????## ##??##?###??????? | | ???????????????????????????????###???????????????? | | ?????????????????????????????????????????????????? | | ?????????????????????????????????????????????????? | | ?????????????????????????????????????????????????? | | ?????????????????????????????????????????????????? | | ?????????????????????????????????????????????????? | +----------------------------------------------------+ Best States ------------- Heat Dissipation 39 Energy Generation 15 Energy Capacity 250 Matter Stores 300 Matter Capacity 300 Sight Range 16 Terrain Scan Density 10 Evasion (%) 55 Item Schematics ----------------- None Robot Schematics ------------------ None Fabricated ------------ Nothing Repaired ---------- Nothing Studied --------- None Alien Tech Used ----------------- None Achievements -------------- Strength In Numbers Challenges ------------ None Game ------ Seed ElectronArchitectAmplifier Manual? 0 Play Time 00:09:41 Cumulative 14.5 hours Start 2025.11.18 @ 19:47:02 End 2025.11.18 @ 19:56:39 Sessions 1 Manual Loads 0 Difficulty Rogue Special Mode None Game No. 10 Rogue 1 Adventurer 8 Explorer 1 Win Type - Total 0 Types 0/0/0/0/0/0/0/0/0/0 Lore% 3 Gallery% 17 Achievement% 15 Wizard Run 0 Options --------- Layout 2 ASCII 0 Keyboard 0 Movement Numpad Keybinds 0 Fullscreen 1 Font 16/SmallcapsGlow Map View 50x49 Zoom Use 0% Tactical HUD 1 Map Filters NONE Filters NONE Steam SD RUN: 85f6a229-92b0-4ca1-9d5b-3e69496c6a37